bitfinex/quotes_BTCUSD_20240902
["timestamp","ask_amount","ask_price","bid_price","bid_amount"]
[1725255425851,0.120966,57868.0,57864.0,0.0473994]
[1725255426319,0.120963,57869.0,57864.0,0.0473994]
[1725255427412,0.02711749,57868.0,57867.0,0.120967]
[1725255427618,0.02711749,57868.0,57867.0,0.04719074]
[1725255428689,0.02711749,57868.0,57867.0,0.16815774]
[1725255428899,0.02711749,57868.0,57867.0,0.18015774]
[1725255429951,0.02711749,57868.0,57867.0,0.42209174]
[1725255430157,0.02711749,57868.0,57867.0,0.75322574]
[1725255432635,0.02711749,57868.0,57867.0,0.99515974]
[1725255432840,0.0787493,57881.0,57879.0,0.0669]
[1725255432841,0.000818,57880.0,57879.0,0.0669]
[1725255433021,0.000818,57880.0,57879.0,0.6214362]
[1725255433225,0.000818,57880.0,57879.0,1.1052022]
[1725255434097,0.000818,57880.0,57879.0,1.1032022]
[1725255434278,0.000818,57880.0,57879.0,1.10174775]
[1725255434526,0.000818,57880.0,57879.0,1.21292252]
[1725255435383,0.000818,57880.0,57879.0,0.87186475]
[1725255435822,0.000818,57880.0,57879.0,0.62998175]
[1725255436045,0.000818,57880.0,57879.0,0.38309875]
[1725255436262,0.000818,57880.0,57879.0,0.014]
[1725255436916,0.000818,57880.0,57879.0,0.0174549]
[1725255437361,0.000818,57880.0,57879.0,0.03458617]
[1725255437575,0.000818,57880.0,57879.0,0.02058617]
[1725255437757,0.000818,57880.0,57879.0,0.03458617]
[1725255438180,0.000818,57880.0,57879.0,0.05758617]
[1725255438392,0.000818,57880.0,57879.0,0.05413127]
[1725255438639,0.000818,57880.0,57879.0,0.56397664]
[1725255438856,0.000818,57880.0,57879.0,0.95685964]
[1725255439503,0.000818,57880.0,57879.0,0.95485964]
[1725255439926,0.000818,57880.0,57879.0,0.95685964]
[1725255440136,0.000818,57880.0,57879.0,0.94985964]
[1725255442287,0.000818,57880.0,57879.0,0.70797664]
[1725255442702,0.000818,57880.0,57879.0,0.46609364]
[1725255444192,0.000818,57880.0,57879.0,0.24952137]
[1725255444409,0.121757,57880.0,57879.0,0.014]
[1725255444628,0.363636,57880.0,57879.0,0.014]
[1725255444853,0.121757,57880.0,57879.0,0.014]
[1725255445699,0.363636,57880.0,57879.0,0.014]
[1725255447277,0.11557091,57880.0,57879.0,0.014]
[1725255447482,0.35744991,57880.0,57879.0,0.014]
[1725255448092,0.35826691,57880.0,57879.0,0.014]
[1725255452548,0.11638791,57880.0,57879.0,0.014]
[1725255452765,0.35826691,57880.0,57879.0,0.03436477]
[1725255452976,0.000817,57880.0,57879.0,0.235241]
[1725255453194,0.000817,57880.0,57879.0,0.23869588]
[1725255454958,0.000817,57880.0,57879.0,0.72746188]
[1725255455173,0.000817,57880.0,57879.0,0.90271369]
[1725255455387,0.000817,57880.0,57879.0,1.14459669]
[1725255457430,0.000817,57880.0,57879.0,1.15459669]
[1725255458104,0.000817,57880.0,57879.0,1.15659669]
[1725255460038,0.000817,57880.0,57879.0,1.48336589]
[1725255461931,0.000817,57880.0,57879.0,1.38537839]
[1725255462143,0.000817,57880.0,57879.0,1.46936589]
[1725255462370,0.000817,57880.0,57879.0,1.48336589]
[1725255462783,0.000817,57880.0,57879.0,1.48136589]
[1725255464382,0.000817,57880.0,57879.0,1.46736589]
[1725255464620,0.000817,57880.0,57879.0,1.48136589]
[1725255465586,0.000817,57880.0,57879.0,1.48336589]
[1725255465982,0.000817,57880.0,57879.0,1.48136589]
[1725255467666,0.000817,57880.0,57879.0,1.48336589]
[1725255467903,0.000817,57880.0,57879.0,1.48136589]
[1725255468357,0.02710705,57892.0,57879.0,1.48136589]
[1725255468358,0.87362328,57900.0,57889.0,0.0839875]
[1725255468613,0.1209,57899.0,57894.0,0.120909]
[1725255468855,0.1209,57899.0,57895.0,0.120908]
[1725255469097,0.1209,57899.0,57896.0,0.0120908]
[1725255470911,0.87362328,57900.0,57896.0,0.1329968]
[1725255471350,0.87362328,57900.0,57897.0,0.120904]
[1725255471756,0.87362328,57900.0,57896.0,0.0120908]
[1725255471965,0.90072841,57900.0,57897.0,0.120903]
[1725255472171,0.90072841,57900.0,57896.0,0.120906]
[1725255472371,0.90072841,57900.0,57896.0,0.132906]
[1725255472594,0.90072841,57900.0,57896.0,0.16263195]
[1725255472938,0.000817,57899.0,57896.0,0.17263195]
[1725255473621,0.000817,57899.0,57897.0,0.120904]
[1725255474369,0.000817,57899.0,57897.0,0.1865313]
[1725255475812,0.000817,57899.0,57897.0,0.0656273]
[1725255476158,0.000817,57899.0,57897.0,0.1865303]
[1725255476313,0.000817,57899.0,57897.0,0.120903]
[1725255476859,0.000817,57899.0,57894.0,0.241819]
[1725255477103,0.000817,57899.0,57896.0,0.120905]
[1725255477546,0.0639,57898.0,57893.0,0.241824]
[1725255477763,0.0639,57898.0,57895.0,0.120906]
[1725255477969,0.0639,57898.0,57897.0,0.022]
[1725255478871,0.0639,57898.0,57897.0,0.034]
[1725255479083,0.0639,57898.0,57897.0,0.022]
[1725255479287,0.0639,57898.0,57897.0,0.035]
[1725255479906,0.0639,57898.0,57897.0,0.155904]
[1725255480120,0.0639,57898.0,57897.0,0.035]
[1725255480329,0.184802,57898.0,57897.0,0.035]
[1725255480537,0.0639,57898.0,57897.0,0.035]
[1725255480752,0.89156474,57898.0,57897.0,0.035]
[1725255481014,0.75061,57898.0,57897.0,0.035]
[1725255481673,0.85061,57898.0,57897.0,0.035]
[1725255482097,0.85061,57898.0,57897.0,0.03409183]
[1725255483308,0.608766,57898.0,57897.0,0.03409183]
[1725255483738,0.366962,57898.0,57897.0,0.03409183]
[1725255484146,0.366962,57898.0,57897.0,0.04959191]
[1725255484574,0.24606,57898.0,57897.0,0.04959191]
[1725255484811,0.29788382,57898.0,57897.0,0.04959191]
[1725255485029,0.29870182,57898.0,57897.0,0.03409183]
[1725255485499,0.100818,57898.0,57897.0,0.03409183]
[1725255485706,0.000818,57898.0,57897.0,0.03409183]
[1725255486901,0.000818,57898.0,57897.0,0.15499583]
[1725255487134,0.00038189,57898.0,57897.0,0.19467671]
[1725255487843,0.00038189,57898.0,57897.0,0.07377271]
[1725255490449,0.00038189,57898.0,57897.0,0.03409183]
[1725255490941,0.00038189,57898.0,57897.0,0.15499583]
[1725255491428,0.00038189,57898.0,57897.0,0.39680383]
[1725255492641,0.00038189,57898.0,57897.0,0.63861183]
[1725255496411,0.00038189,57898.0,57897.0,0.39680383]
[1725255497063,0.00038189,57898.0,57897.0,0.45199166]
[1725255497514,0.00038189,57898.0,57897.0,0.39770253]
[1725255501119,0.13938189,57898.0,57897.0,0.03499053]
[1725255501323,0.36028389,57898.0,57897.0,0.03499053]
[1725255501570,0.84389189,57898.0,57897.0,0.03499053]
[1725255504322,1.08569589,57898.0,57897.0,0.03499053]
[1725255504909,1.1128036,57898.0,57897.0,0.03499053]
[1725255505563,0.75251971,57898.0,57897.0,0.02199053]
[1725255505889,0.75251971,57898.0,57897.0,0.02599053]
[1725255506149,0.87342171,57898.0,57897.0,0.02599053]
[1725255507554,0.97342171,57898.0,57897.0,0.02199053]
[1725255508568,1.11472171,57898.0,57897.0,0.02199053]
[1725255509198,1.11553871,57898.0,57897.0,0.02199053]
[1725255509982,1.39577035,57898.0,57897.0,0.02199053]
[1725255510227,1.40682157,57898.0,57897.0,0.02199053]
[1725255510672,1.23826993,57898.0,57897.0,0.02199053]
[1725255511343,1.48007393,57898.0,57897.0,0.02199053]
[1725255511603,1.48107393,57898.0,57897.0,0.02199053]
[1725255512092,1.48107393,57898.0,57875.0,0.0664987]
[1725255512093,0.745997,57880.0,57875.0,0.0008987]
[1725255512536,0.845997,57880.0,57875.0,0.0008987]
[1725255512985,0.73181041,57880.0,57875.0,0.0008987]
[1725255513456,0.704697,57880.0,57875.0,0.0008987]
[1725255513667,0.73180997,57880.0,57875.0,0.0008987]
[1725255514142,0.73180997,57880.0,57879.0,0.0098987]
[1725255514361,0.73180997,57880.0,57879.0,0.0008987]
[1725255514839,0.73180997,57880.0,57879.0,0.0078987]
[1725255519402,0.48993097,57880.0,57879.0,0.0078987]
[1725255519872,0.12711297,57880.0,57879.0,0.0078987]
[1725255520089,0.02711297,57880.0,57879.0,0.4363227]
[1725255520302,0.02711297,57880.0,57879.0,0.49695914]
[1725255520512,0.02711297,57880.0,57879.0,0.73884214]
[1725255520948,0.02711297,57880.0,57879.0,0.49695914]
[1725255522290,0.1,57887.0,57879.0,0.61790114]
[1725255522500,0.1,57887.0,57885.0,0.120929]
[1725255522908,0.1,57889.0,57886.0,0.0603]
[1725255523119,0.220921,57889.0,57886.0,0.0603]
[1725255523357,0.1,57889.0,57886.0,0.181225]
[1725255523578,0.220919,57890.0,57886.0,0.181225]
[1725255523760,0.001,57887.0,57886.0,0.0603]
[1725255524222,0.1,57888.0,57886.0,0.0603]
[1725255525292,0.1,57888.0,57886.0,0.1026099]
[1725255526279,0.1,57888.0,57886.0,0.1815099]
[1725255527448,0.101,57888.0,57886.0,0.1815099]
[1725255528888,0.101,57888.0,57886.0,0.3024369]
[1725255529240,0.1,57887.0,57886.0,0.5442909]
[1725255529443,0.001,57888.0,57887.0,0.120925]
[1725255530223,0.02711063,57889.0,57888.0,0.120923]
[1725255531715,0.02711063,57889.0,57888.0,0.362769]
[1725255532664,0.02711063,57889.0,57887.0,0.124925]
[1725255532897,0.02711063,57889.0,57887.0,0.120925]
[1725255533307,0.02711063,57889.0,57888.0,0.006]
[1725255533508,0.02711063,57889.0,57887.0,0.120925]
[1725255533928,0.120923,57888.0,57887.0,0.006]
[1725255534131,0.120923,57888.0,57880.0,0.0647]
[1725255534132,0.120926,57887.0,57882.0,0.120935]
[1725255534339,0.120927,57886.0,57882.0,0.120935]
[1725255535379,0.220924,57888.0,57884.0,0.120931]
[1725255535584,0.1,57887.0,57884.0,0.120931]
[1725255536619,0.1,57887.0,57885.0,0.0362805]
[1725255537089,0.1,57887.0,57886.0,0.203227]
[1725255537299,0.02711063,57889.0,57887.0,0.120923]
[1725255537507,0.02711063,57889.0,57886.0,0.0823]
[1725255537508,0.02711063,57889.0,57888.0,0.120923]
[1725255538500,0.02711063,57889.0,57886.0,0.203225]
[1725255538881,0.02711063,57889.0,57887.0,0.0514484]
[1725255539277,0.02711063,57889.0,57885.0,0.008]
[1725255539688,0.241847,57888.0,57883.0,0.0617]
[1725255539896,0.220926,57887.0,57883.0,0.0617]
[1725255540147,0.220926,57887.0,57886.0,0.008]
[1725255540357,0.120927,57886.0,57883.0,0.0617]
[1725255541252,0.120927,57886.0,57885.0,0.006]
[1725255541457,0.120927,57886.0,57883.0,0.0617]
[1725255541896,0.120927,57886.0,57883.0,0.12190147]
[1725255542297,0.120927,57886.0,57883.0,0.0717]
[1725255543750,0.1,57887.0,57883.0,0.0717]
[1725255543941,0.220925,57887.0,57883.0,0.0717]
[1725255544347,0.220925,57887.0,57886.0,0.0008987]
[1725255546426,0.1,57887.0,57886.0,0.0008987]
[1725255546639,0.220923,57888.0,57886.0,0.0008987]
[1725255547083,0.220923,57888.0,57886.0,0.04700547]
[1725255547538,0.220923,57888.0,57886.0,0.0088987]
[1725255547760,0.1,57888.0,57887.0,0.186125]
[1725255547986,0.02711063,57889.0,57888.0,0.120923]
[1725255549390,0.02711063,57889.0,57888.0,0.362769]
[1725255549625,0.02711063,57889.0,57888.0,0.74788757]
[1725255549853,0.02711063,57889.0,57888.0,0.80828757]
[1725255550339,0.02711063,57889.0,57888.0,0.81428757]
[1725255550549,0.02711063,57889.0,57888.0,0.504669]
[1725255551601,0.05186655,57894.0,57891.0,0.120916]
[1725255551803,0.05186655,57895.0,57891.0,0.120916]
[1725255552460,0.05186655,57895.0,57888.0,0.388746]
[1725255552676,0.05186655,57895.0,57891.0,0.241832]
[1725255553088,0.02710754,57894.0,57889.0,0.241842]
[1725255553295,0.02710754,57894.0,57891.0,0.120916]
[1725255553513,0.02710754,57894.0,57891.0,0.124916]
[1725255553757,0.05186655,57895.0,57891.0,0.124916]
[1725255553968,0.0271079,57894.0,57891.0,0.124916]
[1725255554148,0.1271079,57894.0,57891.0,0.124916]
[1725255554375,0.1271079,57894.0,57891.0,0.120916]
[1725255554750,0.17897445,57894.0,57891.0,0.125916]
[1725255555171,0.17897445,57894.0,57892.0,0.120914]
[1725255555447,0.0271079,57894.0,57893.0,0.0646]
[1725255555862,0.0271079,57894.0,57893.0,0.2287476]
[1725255556741,0.0271079,57894.0,57893.0,0.2337476]
[1725255557559,0.0271079,57894.0,57893.0,0.427337]
[1725255557779,0.0271079,57894.0,57893.0,0.434337]
[1725255558192,0.0271079,57894.0,57893.0,0.427337]
[1725255558398,0.0271079,57894.0,57893.0,0.438337]
[1725255560434,0.0271079,57894.0,57893.0,0.434337]
[1725255560634,0.0271079,57894.0,57893.0,0.5019544]
[1725255561660,0.0271079,57894.0,57893.0,0.192512]
[1725255563031,0.0281079,57894.0,57893.0,0.202512]
[1725255564895,0.0281079,57894.0,57893.0,0.0816]
[1725255565139,0.0281079,57894.0,57893.0,0.526137]
[1725255565358,0.0281079,57894.0,57893.0,0.790962]
[1725255565571,0.0281079,57894.0,57893.0,1.12078547]
[1725255565772,0.0281079,57894.0,57893.0,1.032787]
[1725255565976,0.001,57894.0,57893.0,1.032787]
[1725255567635,0.001,57894.0,57893.0,1.034787]
[1725255570433,0.001,57894.0,57893.0,1.281612]
[1725255570637,0.001,57894.0,57893.0,1.41917547]
[1725255570875,0.001,57894.0,57893.0,1.12180971]
[1725255571098,0.000817,57897.0,57896.0,0.60453]
[1725255571341,0.000817,57897.0,57896.0,0.68853]
[1725255571833,0.000817,57897.0,57896.0,0.66553]
[1725255573317,0.000817,57897.0,57896.0,0.67953]
[1725255573530,0.000817,57897.0,57896.0,0.77124349]
[1725255573946,0.000817,57897.0,57896.0,0.78324349]
[1725255575629,0.000817,57897.0,57896.0,1.2125782]
[1725255576677,0.000817,57897.0,57896.0,1.2175782]
[1725255577487,0.09742072,57898.0,57897.0,0.994328]
[1725255577692,0.09742072,57898.0,57897.0,1.16361692]
[1725255578558,0.09742072,57898.0,57897.0,1.16561692]
[1725255578762,0.09742072,57898.0,57897.0,1.41742492]
[1725255579389,0.09742072,57898.0,57897.0,1.43042492]
[1725255579806,0.09742072,57898.0,57897.0,1.41742492]
[1725255580007,0.09742072,57898.0,57897.0,1.42842492]
[1725255580656,0.09742072,57898.0,57897.0,1.42942492]
[1725255581073,0.09742072,57898.0,57897.0,1.44342492]
[1725255581276,0.09742072,57898.0,57897.0,1.44542492]
[1725255581898,0.09742072,57898.0,57897.0,1.44342492]
[1725255582511,0.09742072,57898.0,57897.0,1.44542492]
[1725255584226,0.87362328,57900.0,57899.0,0.0946]
[1725255584439,0.76668935,57900.0,57899.0,1.35152271]
[1725255584651,0.73868692,57900.0,57899.0,1.35152271]
[1725255585553,0.67208692,57900.0,57899.0,1.35152271]
[1725255585760,0.67208692,57900.0,57899.0,1.48947498]
[1725255585761,0.51890101,57900.0,57899.0,1.48947498]
[1725255585968,0.51890101,57900.0,57899.0,1.50347498]
[1725255586393,0.00818,57903.0,57902.0,1.247241]
[1725255586603,0.00818,57903.0,57902.0,1.35426371]
[1725255587043,0.00818,57903.0,57902.0,1.45426371]
[1725255587240,0.00818,57903.0,57902.0,1.62281535]
[1725255587448,0.00818,57903.0,57902.0,1.63681535]
[1725255587664,0.00818,57903.0,57902.0,1.65081535]
[1725255588304,0.00013,57916.0,57915.0,1.08708771]
[1725255588516,0.00013,57916.0,57915.0,1.21899648]
[1725255588723,0.00013,57916.0,57915.0,1.22099648]
[1725255589384,0.00013,57916.0,57915.0,1.46272948]
[1725255589586,0.00013,57916.0,57915.0,1.22099648]
[1725255589793,0.00013,57916.0,57915.0,1.23499648]
[1725255590000,0.00013,57916.0,57915.0,1.22099648]
[1725255590405,0.00013,57916.0,57915.0,1.23299648]
[1725255590657,0.00013,57916.0,57915.0,1.22099648]
[1725255590872,0.00013,57916.0,57915.0,1.23499648]
[1725255591105,0.00013,57916.0,57915.0,1.24899648]
[1725255591338,0.120828,57934.0,57915.0,1.24899648]
[1725255591339,0.242034,57939.0,57924.0,0.005]
[1725255591622,0.120827,57934.0,57929.0,0.120837]
[1725255591843,0.241649,57936.0,57927.0,0.120839]
[1725255592050,0.120827,57934.0,57928.0,0.120838]
[1725255592268,0.201826,57935.0,57929.0,0.120836]
[1725255592489,0.120828,57934.0,57930.0,0.06076562]
[1725255592912,0.081,57935.0,57930.0,0.18159962]
[1725255592913,0.201826,57935.0,57930.0,0.18159962]
[1725255593139,0.201825,57935.0,57930.0,0.18159962]
[1725255593383,0.000817,57932.0,57930.0,0.06076562]
[1725255593811,0.000817,57932.0,57929.0,0.120836]
[1725255594249,0.000817,57932.0,57930.0,0.014]
[1725255594448,0.0638,57931.0,57930.0,0.014]
[1725255595188,0.0638,57931.0,57930.0,0.134835]
[1725255595394,0.000817,57932.0,57930.0,0.120835]
[1725255595800,0.000817,57932.0,57930.0,0.148835]
[1725255596006,0.000817,57932.0,57931.0,0.4015496]
[1725255597398,0.000817,57932.0,57931.0,0.4155496]
[1725255598053,0.000817,57932.0,57931.0,0.1738836]
[1725255598284,0.000817,57932.0,57931.0,0.134833]
[1725255599210,0.000817,57932.0,57931.0,0.148833]
[1725255600115,0.000817,57932.0,57931.0,0.390499]
[1725255601450,0.000817,57932.0,57931.0,1.036531]
[1725255601681,4e-05,57956.0,57948.0,3.6826]
[1725255601892,4e-05,57956.0,57954.0,0.45837771]
[1725255602113,4e-05,57956.0,57954.0,1.13855548]
[1725255602332,4e-05,57956.0,57954.0,1.32110277]
[1725255602585,4e-05,57956.0,57954.0,1.31910277]
[1725255602836,4e-05,57956.0,57954.0,0.55639277]
[1725255603115,4e-05,57956.0,57954.0,0.64541548]
[1725255603311,4e-05,57956.0,57954.0,1.40312548]
[1725255603518,4e-05,57956.0,57954.0,1.17755548]
[1725255603724,0.0004,57959.0,57958.0,0.620885]
[1725255603946,0.0004,57959.0,57958.0,1.13200399]
[1725255604154,0.0004,57959.0,57958.0,1.25135948]
[1725255605025,0.0004,57959.0,57958.0,1.24935948]
[1725255606362,0.0004,57959.0,57958.0,1.26335948]
[1725255606775,0.0004,57959.0,57958.0,1.27735948]
[1725255607010,0.0004,57959.0,57958.0,1.33391159]
[1725255607236,0.0004,57959.0,57958.0,1.57546559]
[1725255607890,0.0004,57959.0,57958.0,1.57746559]
[1725255608093,0.0004,57959.0,57958.0,1.27935948]
[1725255608757,0.1,57983.0,57973.0,1.1314962]
[1725255608968,0.1,57983.0,57973.0,1.3959872]
[1725255609173,0.1,57983.0,57973.0,1.1544962]
[1725255609387,0.00847,57990.0,57973.0,1.1544962]
[1725255609815,0.00847,57990.0,57973.0,1.1644962]
[1725255610020,0.00847,57990.0,57973.0,1.140918]
[1725255610225,0.00847,57990.0,57973.0,1.26896762]
[1725255610431,0.00847,57990.0,57973.0,1.28296762]
[1725255610631,0.00847,57990.0,57973.0,1.26896762]
[1725255611059,0.00847,57990.0,57973.0,1.26696762]
[1725255611291,0.00847,57990.0,57973.0,1.16696762]
[1725255611495,0.00847,57990.0,57973.0,1.15296762]
[1725255611904,0.00847,57990.0,57973.0,1.16896762]
[1725255612115,0.00847,57990.0,57973.0,1.18096762]
[1725255612116,0.0807,57988.0,57973.0,1.18096762]
[1725255612324,0.201415,57988.0,57973.0,0.92547662]
[1725255612555,0.120717,57987.0,57973.0,0.92547662]
[1725255612767,0.00847,57990.0,57973.0,1.18096762]
[1725255612983,0.00847,57990.0,57973.0,1.18296762]
[1725255613191,0.00847,57990.0,57973.0,1.18096762]
[1725255613410,0.00847,57990.0,57973.0,1.42445862]
[1725255613627,0.00847,57990.0,57973.0,1.18296762]
[1725255613873,0.00847,57990.0,57973.0,1.42445862]
[1725255614111,0.00847,57990.0,57973.0,1.28096762]
[1725255614352,0.00847,57990.0,57973.0,1.28296762]
[1725255614833,0.00847,57990.0,57973.0,1.26896762]
[1725255615068,0.00847,57990.0,57973.0,1.52445862]
[1725255615332,0.00847,57990.0,57973.0,1.51045862]
[1725255615842,0.00847,57990.0,57989.0,0.6574152]
[1725255616188,0.00847,57990.0,57989.0,1.2632652]
[1725255616338,0.00847,57990.0,57989.0,0.9895652]
[1725255616549,0.00847,57990.0,57989.0,1.1669652]
[1725255616764,0.0004,57999.0,57993.0,0.9995062]
[1725255616993,0.0004,57999.0,57993.0,1.14919682]
[1725255617249,0.0004,57999.0,57993.0,1.39060482]
[1725255617698,0.0004,57999.0,57993.0,1.0225062]
[1725255617929,0.08013,57994.0,57993.0,0.120704]
[1725255618173,0.08013,57994.0,57993.0,0.362112]
[1725255618378,0.00013,57994.0,57993.0,0.362112]
[1725255618591,0.00013,57994.0,57993.0,0.60352]
[1725255618831,0.00013,57994.0,57993.0,0.95268022]
[1725255619031,0.00013,57994.0,57993.0,1.18335842]
[1725255619287,0.00013,57994.0,57993.0,1.12025842]
[1725255619528,0.00013,57994.0,57993.0,0.7570982]
[1725255619982,0.00013,57994.0,57993.0,0.014]
[1725255619983,0.08013,57994.0,57993.0,0.014]
[1725255620203,0.120707,57992.0,57987.0,0.120716]
[1725255620417,0.14473,57994.0,57993.0,0.014]
[1725255620831,0.0004,57999.0,57993.0,0.014]
[1725255620832,0.241388,57998.0,57993.0,0.014]
[1725255621009,0.241387,57998.0,57993.0,0.014]
[1725255621246,0.120699,57996.0,57993.0,0.014]
[1725255621477,0.0004,57999.0,57993.0,0.134704]
[1725255621723,0.0004,57999.0,57994.0,0.28246329]
[1725255621947,0.0004,57999.0,57998.0,0.36208]
[1725255622408,0.0004,57999.0,57998.0,0.603467]
[1725255622627,0.0004,57999.0,57998.0,0.949654]
[1725255623278,0.0004,57999.0,57998.0,1.4203192]
[1725255623514,0.0085249,58008.0,58007.0,0.3520532]
[1725255623713,0.0085249,58008.0,58007.0,1.1668032]
[1725255623921,0.0085249,58008.0,58007.0,1.4081532]
[1725255624143,0.00817,58032.0,58031.0,0.361875]
[1725255624364,0.00817,58032.0,58031.0,0.68177032]
[1725255624578,0.00817,58032.0,58019.0,0.005]
[1725255624791,0.148,58031.0,58016.0,0.005]
[1725255625020,0.148,58031.0,58021.0,0.24129]
[1725255625021,0.120628,58030.0,58021.0,0.24129]
[1725255625230,0.148,58031.0,58022.0,0.02757553]
[1725255625432,0.148,58031.0,58022.0,0.00344653]
[1725255625643,0.0657,58031.0,58030.0,0.120627]
[1725255625852,0.00817,58032.0,58021.0,0.1395782]
[1725255626059,0.00817,58032.0,58031.0,0.120625]
[1725255626273,0.00817,58032.0,58031.0,0.398063]
[1725255626732,0.00817,58032.0,58031.0,0.639313]
[1725255626967,0.00817,58032.0,58031.0,0.398063]
[1725255627175,0.00817,58032.0,58031.0,0.156813]
[1725255627420,0.00817,58032.0,58031.0,0.398063]
[1725255627655,0.00817,58032.0,58031.0,0.361875]
[1725255628071,0.00817,58032.0,58031.0,0.849375]
[1725255628286,0.00817,58032.0,58031.0,0.950975]
[1725255628738,0.00817,58032.0,58031.0,0.964975]
[1725255628950,0.00817,58032.0,58031.0,1.07543032]
[1725255629175,0.00817,58032.0,58031.0,1.15163032]
[1725255630819,0.00817,58032.0,58031.0,0.631125]
[1725255631035,0.07637,58032.0,58031.0,0.028]
[1725255631452,0.00817,58032.0,58031.0,0.631125]
[1725255631739,0.00817,58032.0,58031.0,0.872375]
[1725255631949,0.00817,58032.0,58031.0,0.631125]
[1725255632162,0.00817,58032.0,58031.0,1.09864532]
[1725255632377,0.00817,58032.0,58031.0,1.10364532]
[1725255632586,0.00817,58032.0,58031.0,1.13664532]
[1725255633024,0.00817,58032.0,58031.0,1.13864532]
[1725255633638,0.00817,58032.0,58031.0,1.13664532]
[1725255634776,0.00817,58032.0,58031.0,1.12464532]
[1725255636060,0.00817,58032.0,58031.0,1.13864532]
[1725255636567,0.00817,58032.0,58031.0,1.37989532]
[1725255636802,0.00817,58032.0,58031.0,1.12464532]
[1725255637043,0.00817,58032.0,58031.0,1.36389532]
[1725255637289,0.00817,58032.0,58031.0,1.12264532]
[1725255638433,0.00817,58032.0,58031.0,1.13664532]
[1725255638639,0.00817,58032.0,58031.0,1.045075]
[1725255638854,0.00817,58032.0,58031.0,1.031075]
[1725255639063,0.00817,58032.0,58031.0,1.059075]
[1725255639493,0.00817,58032.0,58031.0,1.045075]
[1725255639707,0.00817,58032.0,58031.0,1.40499032]
[1725255639916,0.00817,58032.0,58031.0,1.41899032]
[1725255640339,0.00817,58032.0,58031.0,1.16374032]
[1725255640780,0.00817,58032.0,58031.0,1.40499032]
[1725255641193,0.00817,58032.0,58031.0,1.14974032]
[1725255641710,0.00817,58032.0,58031.0,0.858375]
[1725255641928,0.00817,58032.0,58031.0,0.148625]
[1725255642137,0.00817,58032.0,58030.0,0.120626]
[1725255642350,0.00817,58032.0,58026.0,0.24127]
[1725255642351,0.00817,58032.0,58031.0,0.375875]
[1725255642590,0.00817,58032.0,58031.0,0.028]
[1725255642823,0.00817,58032.0,58030.0,0.120627]
[1725255643059,0.00817,58032.0,58031.0,0.014]
[1725255643269,0.00817,58032.0,58031.0,0.028]
[1725255643491,0.08777,58032.0,58031.0,0.014]
[1725255643742,0.08777,58032.0,58031.0,0.028]
[1725255643955,0.208393,58032.0,58031.0,0.028]
[1725255644175,0.277193,58032.0,58031.0,0.028]
[1725255644402,0.15657,58032.0,58031.0,0.014]
[1725255645512,0.15657,58032.0,58031.0,0.134625]
[1725255645724,0.15657,58032.0,58031.0,0.6319878]
[1725255645932,0.15657,58032.0,58031.0,0.6179878]
[1725255646403,0.15657,58032.0,58031.0,0.6459878]
[1725255646943,0.15657,58032.0,58031.0,0.148625]
[1725255647289,0.15657,58032.0,58031.0,0.028]
[1725255647526,0.277193,58032.0,58031.0,0.028]
[1725255647754,0.15657,58032.0,58031.0,0.028]
[1725255649076,0.518439,58032.0,58031.0,0.028]
[1725255649286,0.859685,58032.0,58031.0,0.028]
[1725255649510,0.25657,58032.0,58031.0,0.028]
[1725255649744,0.618439,58032.0,58031.0,0.028]
[1725255649966,0.377193,58032.0,58031.0,0.028]
[1725255650213,0.618439,58032.0,58031.0,0.028]
[1725255650448,0.377193,58032.0,58031.0,0.028]
[1725255650661,0.40423546,58032.0,58031.0,0.028]
[1725255651100,0.28361246,58032.0,58031.0,0.0428632]
[1725255651310,0.25657,58032.0,58031.0,0.389875]
[1725255651522,0.25657,58032.0,58031.0,0.148625]
[1725255652185,0.25657,58032.0,58031.0,0.028]
[1725255652736,0.377193,58032.0,58031.0,0.028]
[1725255652988,0.859685,58032.0,58031.0,0.028]
[1725255653593,0.859685,58032.0,58031.0,0.014]
[1725255654005,1.03213316,58032.0,58031.0,0.014]
[1725255654263,1.27337916,58032.0,58031.0,0.025]
[1725255654836,1.099231,58032.0,58031.0,0.014]
[1725255655068,1.100231,58032.0,58031.0,0.025]
[1725255655268,0.858985,58032.0,58031.0,0.025]
[1725255655726,0.617739,58032.0,58031.0,0.025]
[1725255655867,0.858985,58032.0,58031.0,0.025]
[1725255656694,0.617739,58032.0,58031.0,0.025]
[1725255658280,0.25587,58032.0,58031.0,0.025]
[1725255658893,0.376493,58032.0,58031.0,0.025]
[1725255659115,0.617739,58032.0,58031.0,0.025]
[1725255659318,1.1620046,58032.0,58031.0,0.025]
[1725255659943,1.6284476,58032.0,58031.0,0.025]
[1725255660149,1.89673918,58032.0,58031.0,0.025]
[1725255660355,1.91361758,58032.0,58031.0,0.025]
[1725255660595,1.84684398,58032.0,58031.0,0.025]
[1725255660803,1.83496558,58032.0,58031.0,0.025]
[1725255661013,1.12627658,58032.0,58031.0,0.014]
[1725255661216,1.29654195,58032.0,58031.0,0.014]
[1725255661652,1.29254195,58032.0,58031.0,0.014]
[1725255661859,0.361944,58020.0,58019.0,0.0008987]
[1725255662075,0.30148095,58032.0,58019.0,0.0008987]
[1725255662076,0.241282,58024.0,58019.0,0.0008987]
[1725255662277,0.120638,58025.0,58019.0,0.0008987]
[1725255662487,0.120642,58023.0,58019.0,0.0008987]
[1725255662692,0.1,58022.0,58019.0,0.0008987]
[1725255662898,0.0798,58020.0,58019.0,0.0008987]
[1725255663101,0.75074,58020.0,58019.0,0.0008987]
[1725255663687,0.75074,58020.0,58019.0,0.0088987]
[1725255663940,0.509444,58020.0,58019.0,0.0088987]
[1725255664157,0.268148,58020.0,58019.0,0.0088987]
[1725255664365,0.120648,58020.0,58019.0,0.0088987]
[1725255664772,0.12704684,58022.0,58019.0,0.0088987]